bitfinex/quotes_SOLUSD_20241113
["timestamp","ask_amount","ask_price","bid_price","bid_amount"]
[1731531606442,23.776884,211.63,211.53,23.54183462]
[1731531606443,23.776884,211.6,211.53,23.54183462]
[1731531606654,30.0,211.57,211.52,0.12549]
[1731531606951,30.0,211.57,211.49,38.30674529]
[1731531607153,30.0,211.57,211.46,11.8223]
[1731531607154,38.30674529,211.56,211.47,38.30674529]
[1731531607460,38.30674529,211.56,211.46,11.8223]
[1731531607461,30.0,211.57,211.51,38.30674529]
[1731531607630,30.0,211.54,211.53,38.30674529]
[1731531608142,30.0,211.54,211.51,54.85424529]
[1731531608349,30.0,211.54,211.52,0.12549]
[1731531608538,4.7262,211.59,211.52,20.12549]
[1731531608941,38.30674529,211.64,211.54,0.12549]
[1731531609131,38.30674529,211.72,211.63,38.30674529]
[1731531609335,30.0,211.64,211.57,20.0]
[1731531609637,30.0,211.64,211.57,24.7265]
[1731531609840,4.7232,211.72,211.62,38.30674529]
[1731531610031,4.7229,211.74,211.63,20.0]
[1731531610733,0.1,211.71,211.57,16.5429]
[1731531611032,38.30674529,211.6,211.43,4.7296]
[1731531611241,38.30674529,211.58,211.48,38.30674529]
[1731531611436,38.30674529,211.58,211.5,38.30674529]
[1731531611749,4.7261,211.59,211.5,43.03464529]
[1731531612149,4.7258,211.61,211.52,38.30674529]
[1731531612440,38.30674529,211.66,211.58,38.43223529]
[1731531612649,38.30674529,211.63,211.58,0.12549]
[1731531613033,38.30674529,211.63,211.55,20.0]
[1731531613235,38.30674529,211.61,211.52,38.30674529]
[1731531613429,38.30674529,211.63,211.55,0.12549]
[1731531613744,43.03204529,211.63,211.55,4.85239]
[1731531614332,43.03204529,211.63,211.59,0.12549]
[1731531614529,38.30674529,211.61,211.58,0.2862]
[1731531614746,4.7253,211.63,211.58,0.2862]
[1731531614747,38.30674529,211.59,211.58,0.2862]
[1731531614953,45.18584529,211.59,211.58,0.2862]
[1731531615634,49.91194529,211.59,211.58,0.2862]
[1731531616649,0.1,211.57,211.42,38.30674529]
[1731531616968,38.30674529,211.51,211.43,0.12549]
[1731531617138,75.5311,211.59,211.48,38.30674529]
[1731531617139,38.30674529,211.57,211.48,38.30674529]
[1731531617650,11.6052,211.59,211.49,0.12549]
[1731531617651,38.30674529,211.55,211.49,0.12549]
[1731531618039,38.30674529,211.55,211.48,0.12549]
[1731531618371,38.30674529,211.57,211.48,0.12549]
[1731531618857,38.30674529,211.57,211.48,38.43223529]
[1731531619164,6.8791,211.59,211.52,38.30674529]
[1731531619349,4.726,211.6,211.53,20.0]
[1731531619667,7.1124,211.66,211.58,38.30674529]
[1731531619982,11.8371,211.66,211.59,0.12549]
[1731531620262,45.41914529,211.73,211.64,38.30674529]
[1731531620666,45.35754529,211.8,211.71,38.30674529]
[1731531620854,38.30674529,211.84,211.75,38.30674529]
[1731531621164,7.0508,211.87,211.79,38.30674529]
[1731531621369,38.30674529,211.9,211.81,38.30674529]
[1731531621668,38.30674529,211.91,211.83,38.30674529]
[1731531621865,0.0953,211.84,211.83,20.0]
[1731531622077,38.40204529,211.84,211.74,20.0]
[1731531622362,38.30674529,211.77,211.67,38.30674529]
[1731531622548,38.30674529,211.79,211.72,20.0]
[1731531622754,38.30674529,211.81,211.73,38.43223529]
[1731531622954,0.0953,211.84,211.77,38.30674529]
[1731531623141,0.0953,211.84,211.78,0.12549]
[1731531624543,0.0953,211.84,211.78,24.84719]
[1731531624876,38.40204529,211.84,211.78,20.0]
[1731531625164,38.40204529,211.84,211.76,20.0]
[1731531625373,38.30674529,211.78,211.68,38.30674529]
[1731531625668,38.30674529,211.76,211.68,11.8102]
[1731531625872,38.30674529,211.78,211.68,50.11694529]
[1731531626047,38.30674529,211.76,211.68,11.8102]
[1731531626247,38.30674529,211.74,211.68,11.8102]
[1731531626460,38.30674529,211.74,211.69,0.12549]
[1731531626779,0.0953,211.84,211.79,0.1]
[1731531627009,0.0953,211.84,211.83,38.30674529]
[1731531627479,35.90204529,211.95,211.83,38.30674529]
[1731531627650,35.90204529,211.95,211.85,38.30674529]
[1731531628354,4.7184,211.94,211.86,0.12549]
[1731531628558,6.9021,211.97,211.86,0.12549]
[1731531628780,38.30674529,212.05,211.95,38.30674529]
[1731531629069,38.30674529,212.05,211.96,0.12549]
[1731531629855,38.30674529,212.05,211.97,38.30674529]
[1731531630071,38.30674529,212.05,211.95,38.30674529]
[1731531630265,38.30674529,211.97,211.87,38.30674529]
[1731531630575,38.30674529,211.89,211.81,11.803]
[1731531630781,38.30674529,211.91,211.81,38.30674529]
[1731531630980,38.30674529,211.91,211.82,0.12549]
[1731531631566,38.30674529,211.91,211.83,38.30674529]
[1731531632075,38.30674529,211.91,211.74,24.5135]
[1731531632076,38.30674529,211.86,211.77,38.30674529]
[1731531632281,38.30674529,211.86,211.77,43.02864529]
[1731531632489,38.30674529,211.86,211.77,38.30674529]
[1731531632662,38.30674529,211.86,211.77,43.02864529]
[1731531632863,38.30674529,211.86,211.78,0.12549]
[1731531633073,38.30674529,211.86,211.77,38.30674529]
[1731531633481,38.30674529,211.88,211.79,38.30674529]
[1731531633688,38.30674529,211.9,211.81,38.30674529]
[1731531634061,38.30674529,211.9,211.82,0.12549]
[1731531634375,38.30674529,211.86,211.78,20.0]
[1731531634567,38.30674529,211.88,211.79,38.43223529]
[1731531634763,38.30674529,211.92,211.85,38.30674529]
[1731531634972,38.30674529,211.94,211.85,38.30674529]
[1731531635283,4.718,211.95,211.87,38.30674529]
[1731531635485,38.30674529,211.92,211.83,38.30674529]
[1731531635660,38.30674529,211.92,211.73,0.1]
[1731531635661,38.30674529,211.84,211.75,38.30674529]
[1731531635861,38.30674529,211.84,211.62,5.6791]
[1731531635862,38.30674529,211.86,211.77,38.30674529]
[1731531636068,7.5444,211.89,211.62,5.5791]
[1731531636069,38.30674529,211.84,211.75,38.30674529]
[1731531636789,4.7198,211.88,211.7,16.5327]
[1731531636790,38.30674529,211.82,211.73,38.30674529]
[1731531636961,38.30674529,211.82,211.74,0.12549]
[1731531637163,38.30674529,211.88,211.79,38.30674529]
[1731531637385,7.5444,211.89,211.81,38.30674529]
[1731531637583,4.7185,211.93,211.85,38.30674529]
[1731531637787,38.30674529,211.9,211.82,20.0]
[1731531637990,17.3905,211.94,211.85,38.30674529]
[1731531637991,22.1089,211.94,211.85,38.30674529]
[1731531638169,38.30674529,211.96,211.87,38.30674529]
[1731531638565,38.30674529,211.94,211.83,54.82924529]
[1731531638770,38.30674529,211.92,211.83,54.82924529]
[1731531639074,38.30674529,211.94,211.86,0.12549]
[1731531639289,38.30674529,212.0,211.91,38.30674529]
[1731531639598,43.02374529,212.0,211.92,0.12549]
[1731531639891,43.02374529,212.0,211.91,38.30674529]
[1731531640094,43.02374529,212.0,211.82,0.1716]
[1731531640095,38.30674529,211.94,211.85,38.30674529]
[1731531640777,38.30674529,211.94,211.86,0.12549]
[1731531641090,43.02474529,211.96,211.87,43.02654529]
[1731531641265,38.30674529,211.98,211.89,38.30674529]
[1731531641469,17.6681,212.02,211.91,38.30674529]
[1731531641470,38.30674529,212.0,211.91,38.30674529]
[1731531641668,0.4652158,212.07,211.9,0.12549]
[1731531641669,4.7164,212.03,211.95,38.30674529]
[1731531642271,45.55314529,212.04,211.95,38.30674529]
[1731531642485,7.2464,212.04,211.97,38.30674529]
[1731531642684,11.9626,212.04,211.97,38.30674529]
[1731531642998,38.30674529,212.01,211.93,38.30674529]
[1731531643165,43.02314529,212.03,211.95,38.43223529]
[1731531643362,7.2464,212.04,211.95,38.43223529]
[1731531643662,0.4652158,212.07,211.99,38.30674529]
[1731531643663,38.77196109,212.07,211.99,38.30674529]
[1731531644276,38.77196109,212.07,212.0,0.12549]
[1731531644889,38.30674529,212.03,211.96,20.0]
[1731531645090,38.30674529,212.05,211.97,0.12549]
[1731531645272,38.30674529,212.05,211.97,38.43223529]
[1731531645470,38.30674529,212.03,211.95,54.81984529]
[1731531645670,38.30674529,212.05,211.96,20.0]
[1731531646072,38.30674529,212.05,211.97,0.12549]
[1731531646477,38.30674529,212.05,211.98,4.7174]
[1731531646677,43.02264529,212.05,211.98,4.7174]
[1731531647788,43.02264529,212.05,211.97,38.30674529]
[1731531648006,43.02264529,212.05,211.97,43.02424529]
[1731531648293,43.02264529,212.05,211.98,0.12549]
[1731531649398,43.02264529,212.05,211.97,54.81834529]
[1731531649903,0.4652158,212.07,212.01,38.30674529]
[1731531650276,0.4652158,212.07,212.03,38.30674529]
[1731531650474,0.4652158,212.07,212.05,38.30674529]
[1731531650685,0.4652158,212.07,212.0,38.30674529]
[1731531650871,5.1806158,212.07,212.0,38.30674529]
[1731531651077,38.30674529,212.06,211.98,50.10024529]
[1731531651290,38.30674529,212.06,211.98,38.30674529]
[1731531651499,38.30674529,211.99,211.83,16.5226]
[1731531651795,38.30674529,211.92,211.85,38.30674529]
[1731531652000,38.30674529,211.9,211.84,4.7204]
[1731531652179,38.30674529,211.88,211.83,0.12549]
[1731531652785,38.30674529,211.9,211.82,54.82994529]
[1731531653326,38.30674529,211.88,211.83,0.12549]
[1731531653620,38.30674529,211.9,211.82,16.5232]
[1731531653790,38.30674529,211.9,211.82,54.82994529]
[1731531653992,38.30674529,211.9,211.82,16.5232]
[1731531654187,4.7192,211.9,211.78,38.30674529]
[1731531654388,38.30674529,211.84,211.77,16.5269]
[1731531655003,38.30674529,211.82,211.77,16.5269]
[1731531655208,38.30674529,211.84,211.77,16.5269]
[1731531655505,38.30674529,211.84,211.78,20.0]
[1731531655693,4.7192,211.9,211.71,38.30674529]
[1731531655694,38.30674529,211.8,211.71,38.30674529]
[1731531656018,23.5912,211.95,211.64,43.98584529]
[1731531656019,38.30674529,211.77,211.72,11.8078]
[1731531656483,38.30674529,211.79,211.72,11.8078]
[1731531656886,38.30674529,211.77,211.72,11.8078]
[1731531657294,38.30674529,211.81,211.73,38.43223529]
[1731531657496,38.30674529,211.81,211.72,11.8078]
[1731531657909,38.30674529,211.81,211.72,16.531]
[1731531658115,38.30674529,211.81,211.73,20.0]
[1731531659586,38.30674529,211.83,211.74,0.12549]
[1731531659805,38.30674529,211.83,211.62,0.1]
[1731531659806,38.30674529,211.76,211.62,0.1]
[1731531660015,38.30674529,211.72,211.63,38.30674529]
[1731531660188,38.30674529,211.7,211.61,54.84644529]
[1731531660625,38.30674529,211.64,211.56,7.35590718]
[1731531660798,38.30674529,211.62,211.55,16.5444]
[1731531661110,38.30674529,211.64,211.56,0.12549]
[1731531661313,45.54724529,211.68,211.59,38.30674529]
[1731531661505,38.30674529,211.66,211.57,38.30674529]
[1731531661708,38.30674529,211.64,211.55,54.85114529]
[1731531661927,7.2405,211.68,211.57,38.30674529]
[1731531661928,38.30674529,211.66,211.57,38.30674529]
[1731531662222,38.30674529,211.58,211.5,16.5483]
[1731531662520,38.30674529,211.6,211.51,38.30674529]
[1731531663093,38.30674529,211.58,211.5,16.5483]
[1731531663315,38.30674529,211.56,211.5,16.5483]
[1731531663519,38.30674529,211.58,211.5,16.5483]
[1731531664118,38.30674529,211.6,211.51,38.30674529]
[1731531664318,76.61349058,211.53,211.35,38.30674529]
[1731531664512,38.30674529,211.48,211.39,38.30674529]
[1731531664719,38.30674529,211.5,211.41,38.30674529]
[1731531665036,38.30674529,211.46,211.38,11.827]
[1731531665494,38.30674529,211.44,211.36,0.12549]
[1731531665817,38.30674529,211.46,211.35,38.30674529]
[1731531666032,38.30674529,211.42,211.33,50.13654529]
[1731531666192,38.30674529,211.44,211.35,38.30674529]
[1731531666519,38.30674529,211.44,211.36,0.12549]
[1731531667094,38.30674529,211.44,211.37,4.731]
[1731531667328,38.30674529,211.5,211.4,38.30674529]
[1731531667693,38.30674529,211.46,211.37,16.5586]
[1731531668910,38.30674529,211.42,211.37,11.8276]
[1731531670420,38.30674529,211.44,211.37,11.8276]
[1731531670714,38.30674529,211.43,211.37,11.8276]
[1731531672102,43.03654529,211.43,211.35,20.0]
[1731531672307,38.30674529,211.39,211.32,0.4652158]
[1731531672617,38.30674529,211.37,211.32,0.4652158]
[1731531672931,38.30674529,211.35,211.32,0.4652158]
[1731531673100,38.30674529,211.33,211.32,0.4652158]
[1731531673527,43.03864529,211.33,211.32,0.4652158]
[1731531674032,66.81552929,211.33,211.32,0.4652158]
[1731531674204,66.81552929,211.33,211.1,0.5652158]
[1731531674205,23.776884,211.32,211.1,6.0778158]
[1731531674536,38.30674529,211.28,211.19,38.30674529]
[1731531674830,38.30674529,211.28,211.15,11.8398]
[1731531674831,38.30674529,211.26,211.17,38.30674529]
[1731531675007,38.30674529,211.24,211.15,50.14654529]
[1731531675408,38.30674529,211.24,211.16,0.12549]
[1731531675606,38.30674529,211.24,211.16,20.12549]
[1731531675818,38.30674529,211.24,211.16,20.0]
[1731531676022,38.30674529,211.24,211.17,0.12549]
[1731531676226,38.30674529,211.24,211.15,54.88244529]
[1731531676633,38.30674529,211.24,211.16,0.12549]
[1731531677155,38.30674529,211.24,211.18,0.12549]
[1731531677645,45.19734529,211.29,211.19,38.30674529]
[1731531677942,38.30674529,211.29,211.2,58.43223529]
[1731531678630,38.30674529,211.29,211.19,20.0]
[1731531678838,38.30674529,211.27,211.19,20.0]
[1731531679029,38.30674529,211.27,211.19,24.735]
[1731531679343,38.30674529,211.23,211.14,43.04284529]
[1731531679571,38.30674529,211.21,211.12,50.14794529]
[1731531679754,38.30674529,211.23,211.14,38.30674529]
[1731531680340,38.30674529,211.23,211.12,11.8412]
[1731531680341,38.30674529,211.21,211.12,54.88444529]
[1731531680552,38.30674529,211.14,211.1,0.4652158]
[1731531680926,37.83352931,211.14,211.1,0.4652158]
[1731531681250,38.30674529,211.14,211.1,0.4652158]
[1731531682251,38.30674529,211.18,211.11,20.0]
[1731531682455,38.30674529,211.18,211.1,12.3079158]
[1731531682633,38.30674529,211.16,211.1,0.4652158]
[1731531683141,43.04244529,211.16,211.1,0.4652158]
[1731531683341,43.04244529,211.16,211.08,24.7026158]
[1731531683523,43.04244529,211.16,211.08,19.9652158]
[1731531683731,38.30674529,211.12,211.05,12.7252]
[1731531684234,38.30674529,211.1,211.05,0.88]
[1731531684757,38.30674529,211.12,211.05,0.88]
[1731531685045,43.04384529,211.1,211.05,0.88]
[1731531686048,17.7226,211.0,210.78,0.1]
[1731531686219,17.7226,211.0,210.74,0.1]
[1731531686220,38.30674529,210.9,210.79,38.30674529]
[1731531686423,38.30674529,210.9,210.81,7.35707821]
[1731531686642,38.30674529,210.9,210.83,11.8575]
[1731531686831,38.30674529,210.9,210.87,4.7421]
[1731531687040,38.30674529,210.9,210.84,4.7428]
[1731531687238,66.82512929,210.9,210.77,50.16744529]
[1731531687439,66.82512929,210.9,210.79,4.744]
[1731531687641,38.30674529,210.9,210.79,38.30674529]
[1731531687839,38.30674529,210.9,210.81,4.7435]
[1731531689229,38.30674529,210.9,210.84,4.7428]
[1731531689443,38.30674529,210.92,210.84,4.7428]
[1731531689632,38.30674529,210.92,210.85,4.7425]
[1731531689842,38.30674529,210.92,210.85,43.04924529]
[1731531690043,38.30674529,210.94,210.85,43.04924529]
[1731531690357,38.30674529,210.9,210.89,0.6368158]
[1731531690563,38.30674529,210.92,210.89,0.6368158]
[1731531690855,38.30674529,210.96,210.89,0.6368158]
[1731531691057,38.30674529,210.94,210.89,12.4913158]
[1731531691352,36.30674529,210.94,210.89,12.4913158]
[1731531691542,38.30674529,210.9,210.89,0.6368158]
[1731531691751,38.30674529,210.9,210.68,16.6128]
[1731531691752,45.73634529,210.9,210.68,16.6128]
[1731531691929,38.30674529,210.82,210.73,38.30674529]
[1731531692135,38.30674529,210.84,210.75,38.30674529]
[1731531692534,38.30674529,210.8,210.71,38.30674529]
[1731531692730,38.30674529,210.78,210.69,54.91874529]
[1731531693154,38.30674529,210.8,210.71,38.30674529]
[1731531693626,38.30674529,210.84,210.69,40.3435]
[1731531693828,11.8524,210.93,210.69,40.3435]
[1731531693829,38.30674529,210.88,210.8,0.12549]
[1731531694596,38.30674529,210.86,210.77,38.30674529]
[1731531694759,38.30674529,210.84,210.76,4.7447]
[1731531695051,38.30674529,210.84,210.76,11.8618]
[1731531695957,38.30674529,210.88,210.79,38.30674529]
[1731531696462,45.73634529,210.9,210.81,38.30674529]
[1731531696838,45.73634529,210.9,210.82,4.7433]
[1731531697238,50.47804529,210.9,210.82,4.7433]
[1731531697445,38.30674529,210.93,210.83,38.30674529]
[1731531698053,38.30674529,210.93,210.84,0.12549]
[1731531698642,43.04764529,210.93,210.85,4.7427]
[1731531698844,38.30674529,210.93,210.85,4.7427]
[1731531699037,38.30674529,210.93,210.85,54.90614529]
[1731531699233,38.30674529,210.93,210.85,16.5994]
[1731531699444,43.04774529,210.93,210.85,16.5994]
[1731531699627,38.30674529,210.91,210.83,38.30674529]
[1731531700048,38.30674529,210.93,210.85,38.30674529]
[1731531700241,38.30674529,210.95,210.87,38.30674529]
[1731531700438,45.22984529,210.97,210.88,16.597]
[1731531700637,45.22984529,210.97,210.89,0.12549]
[1731531700858,45.22984529,210.97,210.89,38.43223529]
[1731531701057,38.30674529,210.97,210.89,38.43223529]
[1731531701245,38.30674529,211.01,210.93,38.30674529]
[1731531701448,38.30674529,211.01,210.91,38.30674529]
[1731531701636,38.30674529,210.99,210.91,38.30674529]
[1731531701966,4.7386,211.03,210.88,16.597]
[1731531701967,38.30674529,210.97,210.88,16.597]
[1731531702162,38.30674529,210.97,210.89,38.30674529]
[1731531702467,38.30674529,211.01,210.93,38.30674529]
[1731531703671,43.04594529,211.01,210.93,38.30674529]
[1731531704164,38.30674529,210.99,210.92,11.8528]
[1731531705455,43.04634529,210.99,210.92,11.8528]
[1731531705651,38.30674529,210.95,210.88,4.7418]
[1731531705853,38.30674529,210.89,210.79,38.30674529]
[1731531706043,38.30674529,210.86,210.78,4.7442]
[1731531706247,38.30674529,210.88,210.79,38.30674529]
[1731531706666,38.30674529,210.9,210.81,38.30674529]
[1731531707044,38.30674529,210.9,210.8,0.12549]
[1731531707045,38.30674529,210.94,210.85,38.30674529]
[1731531707250,43.04674529,210.97,210.88,38.30674529]
[1731531707850,38.30674529,210.99,210.9,38.30674529]
[1731531708067,43.04634529,210.99,210.9,38.30674529]
[1731531708271,38.30674529,210.97,210.89,0.12549]
[1731531709048,4.7398,210.98,210.9,43.04824529]
[1731531709252,43.04624529,210.99,210.9,43.04824529]
[1731531709649,38.30674529,210.97,210.9,4.7415]
[1731531709842,43.04594529,211.01,210.92,38.30674529]
[1731531710044,43.04594529,211.01,210.77,0.2]
[1731531710045,38.30674529,210.94,210.77,0.2]
[1731531710369,38.30674529,210.92,210.84,38.30674529]
[1731531710570,38.30674529,210.96,210.86,38.30674529]
[1731531711071,38.30674529,210.98,210.89,16.5963]
[1731531712264,43.04654529,210.98,210.9,0.12549]
[1731531712756,38.30674529,210.98,210.9,38.43223529]
[1731531713068,38.30674529,211.04,210.96,38.30674529]
[1731531713260,38.30674529,211.02,210.94,38.30674529]
[1731531713662,38.30674529,211.02,210.95,0.12549]
[1731531714249,38.30674529,211.04,210.96,38.30674529]
[1731531714448,30.4759,211.08,210.96,38.30674529]
[1731531714449,38.30674529,211.06,210.97,0.12549]
[1731531714851,45.41414529,211.1,211.02,38.30674529]
[1731531715050,45.41414529,211.1,210.97,0.12549]
[1731531715051,38.30674529,211.12,211.04,38.30674529]
[1731531715469,38.30674529,211.14,211.05,0.12549]
[1731531715874,38.30674529,211.12,211.05,0.12549]
[1731531716464,38.30674529,211.12,211.04,4.7382]
[1731531716669,38.30674529,211.12,211.04,16.5842]
[1731531716875,38.30674529,211.12,211.05,0.12549]
[1731531717104,38.30674529,211.16,211.06,38.30674529]
[1731531717384,18.7699,211.21,211.04,16.5842]
[1731531717385,43.04204529,211.18,211.09,0.12549]
[1731531717577,38.30674529,211.14,211.09,0.12549]
[1731531717957,38.30674529,211.14,211.06,38.30674529]
[1731531718163,4.7364,211.13,211.07,11.8444]
[1731531718765,38.30674529,211.14,211.07,16.5821]
[1731531719083,4.7361,211.15,211.07,16.5821]
[1731531719677,38.30674529,211.14,211.07,16.5821]
[1731531719880,43.04304529,211.14,211.07,11.8444]
[1731531720091,43.04304529,211.14,211.04,38.30674529]
[1731531720681,38.30674529,211.12,211.05,0.12549]
[1731531720887,43.04304529,211.14,211.05,0.12549]
[1731531721259,4.7363,211.14,211.02,54.89214529]
[1731531721459,38.30674529,211.08,211.02,11.8466]
[1731531721665,38.30674529,211.08,211.02,16.5854]
[1731531721887,43.04434529,211.08,211.0,38.30674529]
[1731531722072,43.04434529,211.08,210.98,38.30674529]
[1731531722267,43.04434529,211.08,210.99,0.12549]
[1731531722871,38.30674529,211.18,211.07,38.30674529]
[1731531723066,38.30674529,211.2,211.12,38.30674529]
[1731531723265,23.7657,211.28,211.16,38.30674529]
[1731531723266,38.30674529,211.26,211.16,38.30674529]
[1731531723479,25.6843,211.28,211.18,38.30674529]
[1731531723480,68.72424529,211.28,211.18,38.30674529]
[1731531723670,43.03994529,211.28,211.18,38.30674529]
[1731531723986,43.03994529,211.28,211.2,38.43223529]
[1731531724371,38.30674529,211.26,211.19,11.8376]
[1731531724614,38.30674529,211.26,211.19,16.5726]
[1731531724985,4.7328,211.29,211.22,38.30674529]
[1731531725174,4.7325,211.31,211.22,38.30674529]
[1731531725377,38.30674529,211.32,211.19,16.5726]
[1731531725378,38.30674529,211.28,211.19,11.8376]
[1731531725685,4.7322,211.32,211.19,11.8376]
[1731531725686,57.24005929,211.3,211.2,38.43223529]
[1731531725894,38.30674529,211.3,211.23,4.7341]
[1731531726066,38.30674529,211.3,211.23,11.8354]
[1731531726274,38.30674529,211.3,211.24,0.12549]
[1731531726474,4.7322,211.32,211.24,0.12549]
[1731531726475,43.03894529,211.32,211.24,0.12549]
[1731531726788,43.03894529,211.32,211.24,38.43223529]
[1731531726965,43.03894529,211.32,211.24,0.12549]
[1731531727793,43.03894529,211.32,211.22,38.30674529]
[1731531727794,38.30674529,211.3,211.22,38.30674529]
[1731531727992,38.30674529,211.28,211.2,38.30674529]
[1731531728201,38.30674529,211.24,211.16,38.30674529]
[1731531728383,38.30674529,211.22,211.14,38.30674529]
[1731531728687,38.30674529,211.22,211.13,16.5767]
[1731531728890,38.30674529,211.22,211.14,38.43223529]
[1731531729486,43.04134529,211.22,211.14,43.04284529]
[1731531730401,43.04084529,211.24,211.16,38.30674529]
[1731531730884,43.04084529,211.24,211.1,7.2087]
[1731531730885,38.30674529,211.2,211.1,50.14934529]
[1731531731084,16.5689,211.24,211.04,7.2087]
[1731531731085,38.30674529,211.15,211.08,38.30674529]
[1731531731296,38.30674529,211.15,211.07,0.12549]
[1731531731790,43.04134529,211.21,211.12,38.30674529]
[1731531732688,7.5216,211.25,211.07,16.582]
[1731531732689,38.30674529,211.25,211.18,38.30674529]
[1731531732883,38.30674529,211.25,211.16,38.30674529]
[1731531733085,38.30674529,211.29,211.2,38.30674529]
[1731531733286,38.30674529,211.33,211.24,38.30674529]
[1731531733469,43.03864529,211.33,211.25,16.568]
[1731531733670,43.03864529,211.33,211.25,11.8343]
[1731531734004,43.03864529,211.33,211.25,0.12549]
[1731531734169,4.7319,211.33,211.26,38.30674529]
[1731531734498,38.30674529,211.37,211.29,0.12549]
[1731531734672,7.3584,211.38,211.26,38.30674529]
[1731531734673,38.30674529,211.35,211.26,38.30674529]
[1731531734870,38.30674529,211.33,211.24,38.30674529]
[1731531735094,12.0892,211.38,211.14,0.2]
[1731531735095,38.30674529,211.31,211.22,38.30674529]
[1731531735394,38.30674529,211.29,211.2,38.30674529]
[1731531735577,4.7335,211.26,211.19,11.8372]
[1731531735779,43.03964529,211.29,211.2,38.43223529]
[1731531736692,43.03964529,211.29,211.2,38.30674529]
[1731531737078,38.30674529,211.27,211.2,0.12549]
[1731531737479,38.30674529,211.31,211.22,38.30674529]
[1731531737672,38.30674529,211.31,211.24,38.30674529]
[1731531737883,43.03914529,211.31,211.24,38.30674529]
[1731531738084,38.30674529,211.29,211.23,0.12549]
[1731531738270,38.30674529,211.27,211.19,11.8372]
[1731531738485,38.30674529,211.31,211.22,38.30674529]
[1731531738678,43.03914529,211.31,211.23,0.12549]
[1731531739493,38.30674529,211.27,211.18,38.30674529]
[1731531739874,38.30674529,211.27,211.19,0.12549]
[1731531740094,38.30674529,211.29,211.2,38.30674529]
[1731531740482,43.03914529,211.31,211.22,38.30674529]
[1731531741201,38.30674529,211.33,211.24,38.30674529]
[1731531741495,38.30674529,211.35,211.26,38.30674529]
[1731531741704,38.30674529,211.35,211.27,0.12549]
[1731531742490,38.30674529,211.33,211.24,38.30674529]
[1731531742694,38.30674529,211.31,211.22,38.30674529]
[1731531743183,38.30674529,211.29,211.2,38.30674529]
[1731531743598,38.30674529,211.29,211.21,0.12549]
[1731531743787,38.30674529,211.31,211.21,0.12549]
[1731531744286,38.30674529,211.31,211.2,38.30674529]
[1731531744287,4.7326,211.3,211.2,43.04154529]
[1731531744794,38.30674529,211.27,211.18,38.30674529]
[1731531744995,38.30674529,211.25,211.16,38.30674529]
[1731531745389,38.30674529,211.25,211.17,0.12549]
[1731531745591,38.30674529,211.25,211.16,38.30674529]
[1731531745808,38.30674529,211.25,211.09,40.88477307]
[1731531745809,38.30674529,211.17,211.08,38.30674529]
[1731531746002,38.30674529,211.17,211.06,4.7379]
[1731531746003,38.30674529,211.13,211.04,38.30674529]
[1731531746208,38.30674529,211.1,211.0,43.04594529]
[1731531746405,38.30674529,211.08,211.0,38.30674529]
[1731531746802,38.30674529,211.12,211.02,38.30674529]
[1731531747124,38.30674529,211.1,211.03,0.12549]
[1731531747426,38.30674529,211.12,211.04,38.30674529]
[1731531747922,0.1,211.23,211.0,16.5875]
[1731531747923,71.42224529,211.18,211.08,38.30674529]
[1731531748216,38.30674529,211.14,211.06,38.30674529]
[1731531748390,38.30674529,211.12,211.04,38.30674529]
[1731531749014,4.7359,211.15,211.06,38.43223529]
[1731531749209,38.30674529,211.14,211.06,38.43223529]
[1731531749389,43.04254529,211.16,211.06,38.43223529]
[1731531749594,38.30674529,211.18,211.1,0.12549]
[1731531749808,11.8358,211.23,211.1,0.12549]
[1731531749809,38.30674529,211.2,211.11,38.30674529]
[1731531750212,4.7344,211.22,211.13,38.30674529]
[1731531750213,43.04114529,211.22,211.13,38.30674529]
[1731531750422,43.04114529,211.22,211.13,43.04304529]
[1731531750827,38.30674529,211.2,211.11,54.88554529]
[1731531751326,38.30674529,211.2,211.11,38.30674529]
[1731531751508,38.30674529,211.18,211.09,38.30674529]
[1731531751687,38.30674529,211.16,211.09,38.30674529]
[1731531751893,38.30674529,211.16,211.07,38.30674529]
[1731531752103,38.30674529,211.16,211.08,0.12549]
[1731531752295,4.7355,211.17,211.09,38.30674529]
[1731531752604,23.776884,211.09,210.94,38.30674529]
[1731531752792,38.30674529,211.02,210.94,38.30674529]
[1731531752987,0.1,211.07,210.89,4.7418]
[1731531752988,38.30674529,211.0,210.9,38.30674529]
[1731531753192,38.30674529,210.96,210.88,38.30674529]
[1731531753407,38.30674529,210.96,210.89,0.12549]
[1731531753614,38.30674529,210.96,210.86,38.30674529]
[1731531754017,38.30674529,210.96,210.88,38.30674529]